[Event "Serbian League Women 2024"]
[Site "Bajina Basta"]
[Date "2024.10.01"]
[Round "5.1"]
[White "Garifullina, Leya"]
[Black "Savitha Shri B"]
[Result "1-0"]
[ECO "B33"]
[WhiteElo "2438"]
[BlackElo "2348"]
[Annotator "TA"]
[PlyCount "93"]
[EventDate "2024.09.26"]
[EventType "team-tourn"]
[EventCountry "SRB"]
[SourceTitle "playchess.com"]
[Source "ChessBase"]
[SourceQuality "1"]
[TimeControl "40/5400+30:1800+30"]

{[%evp 25,93,0,0,7,6,-1,-2,0,-10,-22,0,-23,9,0,0,0,0,0,0,-24,0,5,24,0,15,31,50,54,85,79,61,50,60,40,91,54,72,63,61,62,81,113,152,133,190,177,187,97,257,243,295,286,281,293,325,331,299,293,351,383,356,365,490,481,612,594,664,658,1535,1445]} 1. e4 {[%emt 0:00:16]} c5 {[%emt 0:00:13]} 2. Nf3 {[%emt 0:00:14]} Nc6 {[%emt 0:00:05]} 3. d4 {[%emt 0:00:08]} cxd4 {[%emt 0:00:04]} 4. Nxd4 {[%emt 0:00:06]} Nf6 {[%emt 0:00:03]} 5. Nc3 {[%emt 0:00:11]} e5 {[%emt 0:00:03]} 6. Ndb5 {[%emt 0:00:07]} d6 {[%emt 0:00:03]} 7. Nd5 {[%emt 0:00:32]} Nxd5 {[%emt 0:00:07]} 8. exd5 {[%emt 0:00:05]} Nb8 {[%emt 0:00:04]} 9. a4 {[%emt 0:00:09]} Be7 {[%emt 0:00:02]} 10. Be2 {[%emt 0:00:07]} O-O {[%emt 0:00:03]} 11. Bd2 {[%emt 0:00:37] B33: Sicilian: Pelikan and Sveshnikov Variations.} Nd7 {[%emt 0:00:09]} 12. a5 {[%emt 0:00:11]} a6 {[%emt 0:00:03]} 13. Na3 {[%emt 0:00:07]} Nf6 {[%emt 0:00:03]} 14. Bb4 {[%emt 0:01:11]} b5 {[%emt 0:00:12]} 15. c4 {[%emt 0:03:51]} Bb7 {[%emt 0:00:07]} 16. O-O {[%emt 0:02:42]} bxc4 {[%emt 0:00:03]} 17. Bxc4 {[%emt 0:00:07]} Rb8 {[%emt 0:00:03]} 18. Be1 {[%emt 0:03:26]} Rc8 {[%emt 0:07:30]} 19. b4 $146 {[%emt 0:01:55]} ({Predecessor:} 19. Qd3 Rc7 20. f3 Nh5 21. g3 Qa8 22. Bf2 Nf6 23. Rfd1 h5 24. b4 Rfc8 25. Bb6 Rxc4 26. Nxc4 Nxd5 {½-½ Helbich,J (2517)-Jones,I (2412) EU-chT11 fin email 2021}) 19... Rc7 {[%emt 0:01:25]} 20. Qd3 {[%emt 0:04:45]} Qa8 {[%emt 0:01:05]} 21. Rd1 $1 {[%emt 0:00:22]} Rfc8 {[%emt 0:11:34]} 22. f3 {[%emt 0:03:53]} g6 {[%emt 0:12:18]} 23. Bb3 {[%emt 0:09:44]} Bf8 {[%emt 0:13:04]} 24. Nb1 {[%emt 0:04:31]} Nh5 {[%emt 0:04:26]} 25. g3 {[%emt 0:06:25]} Bg7 {[%emt 0:01:08]} 26. Na3 {[%emt 0:04:56]} Rf8 {[%emt 0:23:05]} 27. Nc4 {[%emt 0:01:35]} Qd8 {[%emt 0:01:11]} 28. Nb6 {[%emt 0:02:46]} Qe7 {[%emt 0:00:56]} 29. Bc4 {[%emt 0:05:39]} f5 {[%emt 0:03:17]} ({Better is} 29... Nf6 $1 $14) 30. Qe2 {[%emt 0:04:54]} (30. Bxa6 $6 e4 31. fxe4 fxe4 $11) 30... f4 {[%emt 0:04:22]} 31. g4 {[%emt 0:01:12]} (31. Bxa6 $2 Bxa6 32. Qxa6 fxg3 33. hxg3 Qg5 $19) 31... Nf6 {[%emt 0:00:04]} 32. Bh4 {[%emt 0:01:01]} (32. Bxa6 Bxa6 33. Qxa6 e4 $11) 32... h6 {[%emt 0:04:19]} 33. Bxf6 $1 {[%emt 0:00:20]} (33. Bxa6 Bxa6 34. Qxa6 g5 $15) 33... Qxf6 {[%emt 0:00:31]} 34. Bd3 {[%emt 0:01:31]} (34. Bxa6 Bxa6 35. Qxa6 h5 $15) 34... Qg5 {[%emt 0:04:22]} (34... Rff7 $16 35. Be4 (35. Bxa6 Bxa6 36. Qxa6 e4 $11) 35... Rc3) 35. Kh1 $18 {[%emt 0:01:50]} (35. Bxa6 $2 Bxa6 36. Qxa6 e4 $19) 35... Rff7 {[%emt 0:04:06]} 36. Qe4 {[%emt 0:00:44]} ({Stronger than} 36. Bxa6 Bxa6 37. Qxa6 e4 $11) ({White should play} 36. Rc1 $18) 36... Kh7 $2 {[%emt 0:00:43]} (36... Rc3 $16 {was called for.}) 37. Rc1 $18 {[%emt 0:00:33]} Bf8 {[%emt 0:03:59]} 38. b5 {[%emt 0:01:02]} axb5 {[%emt 0:00:16]} 39. Bxb5 {[%emt 0:00:06]} Qd8 {[%emt 0:01:40]} 40. Bd3 {[%emt 0:01:51]} Rg7 {[%emt 0:00:10]} 41. Qb4 {[%emt 0:32:23]} Rc5 {[%emt 0:05:21]} 42. Rxc5 {[%emt 0:00:00]} dxc5 {[%emt 0:00:15]} 43. Qc4 {[%emt 0:00:00]} Rf7 {[%emt 0:12:05]} 44. Be4 {[%emt 0:00:00]} Rf6 {[%emt 0:01:54]} 45. Rb1 {[%emt 0:00:00]} Qc7 {[%emt 0:04:18]} 46. Qb5 {[%emt 0:00:00]} Be7 {[%emt 0:07:04]} 47. Qd7 {[%emt 0:00:00]} 1-0

[Event "Serbian League Women 2024"]
[Site "Bajina Basta"]
[Date "2024.10.01"]
[Round "5.2"]
[White "Toncheva, Nadya"]
[Black "Rakhmangulova, Anastasiya"]
[Result "0-1"]
[ECO "C41"]
[WhiteElo "2301"]
[BlackElo "2283"]
[Annotator "RC"]
[PlyCount "86"]
[EventDate "2024.09.26"]
[EventType "team-tourn"]
[EventCountry "SRB"]
[SourceTitle "playchess.com"]
[Source "ChessBase"]
[SourceQuality "1"]
[TimeControl "40/5400+30:1800+30"]

1. e4 {[%emt 0:00:02]} d6 {[%emt 0:02:01]} 2. d4 {[%emt 0:00:21]} Nf6 {[%emt 0:00:07]} 3. Nc3 {[%emt 0:00:06]} e5 {[%emt 0:00:34]} 4. Nf3 {[%emt 0:00:39]} Nbd7 {[%emt 0:00:16]} 5. Bc4 {[%emt 0:00:28]} Be7 {[%emt 0:00:09]} 6. O-O {[%emt 0:00:34]} O-O {[%emt 0:00:07]} 7. Re1 {[%emt 0:02:01]} c6 {[%emt 0:00:35]} 8. a4 {[%emt 0:00:29]} a5 {[%emt 0:01:37]} 9. h3 {[%emt 0:02:49]} h6 {[%emt 0:01:21]} 10. Be3 {[%emt 0:09:31]} Re8 {[%emt 0:02:03]} 11. Qb1 {[%emt 0:07:41]} exd4 {[%emt 0:22:34]} 12. Bxd4 {[%emt 0:04:19]} Nf8 {[%emt 0:00:45]} 13. Qa2 {[%emt 0:01:52]} Be6 {[%emt 0:02:33]} 14. Rad1 {[%emt 0:02:26]} N6d7 {[%emt 0:08:58]} 15. Ne2 {[%emt 0:02:44]} Qc7 {[%emt 0:02:36]} 16. Bc3 {[%emt 0:06:21]} Ne5 {[%emt 0:04:01]} 17. Nxe5 {[%emt 0:00:09]} dxe5 {[%emt 0:00:04]} 18. Ng3 {[%emt 0:03:36]} g6 {[%emt 0:05:07]} 19. Qb3 {[%emt 0:06:59]} Rad8 {[%emt 0:02:39]} 20. Nf1 {[%emt 0:00:26]} Bxc4 {[%emt 0:13:27]} 21. Qxc4 {[%emt 0:00:06]} Ne6 {[%emt 0:00:07]} 22. Nh2 {[%emt 0:05:28]} Bf8 {[%emt 0:05:00]} 23. Nf3 {[%emt 0:01:26]} Bg7 {[%emt 0:00:07]} 24. g3 {[%emt 0:01:26]} Bf6 {[%emt 0:04:32]} 25. h4 {[%emt 0:00:45]} h5 {[%emt 0:00:59]} 26. Kg2 {[%emt 0:00:29]} Kg7 {[%emt 0:00:58]} 27. b3 {[%emt 0:03:03]} b6 {[%emt 0:03:00]} 28. Bb2 {[%emt 0:05:48]} Rd6 {[%emt 0:00:48]} 29. Ba3 {[%emt 0:00:30]} Rd7 {[%emt 0:00:30]} 30. c3 {[%emt 0:00:30]} Red8 {[%emt 0:00:30]} 31. Qe2 {[%emt 0:00:30]} Rxd1 {[%emt 0:00:30]} 32. Rxd1 {[%emt 0:00:30]} Rd7 {[%emt 0:00:30]} 33. Rxd7 {[%emt 0:00:30]} Qxd7 {[%emt 0:00:30]} 34. Qe3 {[%emt 0:00:30]} b5 {[%emt 0:03:55]} 35. axb5 {[%emt 0:23:08]} cxb5 {[%emt 0:00:01]} 36. Nd2 {[%emt 0:00:28]} Qb7 {[%emt 0:07:17]} 37. Qd3 {[%emt 0:01:48]} Bxh4 {[%emt 0:03:07]} 38. Qd5 {[%emt 0:00:05]} Qb6 {[%emt 0:00:06]} 39. Bd6 {[%emt 0:00:29]} Nf4+ {[%emt 0:01:36]} 40. gxf4 {[%emt 0:00:52]} Qxf2+ {[%emt 0:00:02]} 41. Kh1 {[%emt 0:30:18]} Bg3 {[%emt 0:07:57]} 42. Bxe5+ {[%emt 0:00:00]} Kh6 {[%emt 0:00:36]} 43. Bg7+ {[%emt 0:00:00]} Kh7 {[%emt 0:00:36]} 0-1

[Event "Serbian League Women 2024"]
[Site "Bajina Basta"]
[Date "2024.10.01"]
[Round "5.3"]
[White "Eric, Jovana"]
[Black "Grozdanovic, Anastasia"]
[Result "1/2-1/2"]
[ECO "B41"]
[WhiteElo "2162"]
[BlackElo "2041"]
[Annotator "RC"]
[PlyCount "56"]
[EventDate "2024.09.26"]
[EventType "team-tourn"]
[EventCountry "SRB"]
[SourceTitle "playchess.com"]
[Source "ChessBase"]
[SourceQuality "1"]
[TimeControl "40/5400+30:1800+30"]

1. e4 {[%emt 0:00:03]} c5 {[%emt 0:00:18]} 2. Nf3 {[%emt 0:00:09]} e6 {[%emt 0:00:04]} 3. d4 {[%emt 0:00:05]} cxd4 {[%emt 0:00:02]} 4. Nxd4 {[%emt 0:00:07]} a6 {[%emt 0:00:03]} 5. c4 {[%emt 0:00:20]} Nf6 {[%emt 0:00:04]} 6. Nc3 {[%emt 0:00:41]} Bb4 {[%emt 0:00:06]} 7. Qd3 {[%emt 0:00:52]} d5 {[%emt 0:00:44]} 8. exd5 {[%emt 0:00:20]} exd5 {[%emt 0:00:21]} 9. Be2 {[%emt 0:00:21]} O-O {[%emt 0:00:44]} 10. O-O {[%emt 0:00:27]} Nc6 {[%emt 0:00:35]} 11. Nxc6 {[%emt 0:01:50]} bxc6 {[%emt 0:00:03]} 12. cxd5 {[%emt 0:00:22]} Nxd5 {[%emt 0:00:06]} 13. Nxd5 {[%emt 0:02:01]} Qxd5 {[%emt 0:00:06]} 14. Qg3 {[%emt 0:01:05]} Bd6 {[%emt 0:00:21]} 15. Bf4 {[%emt 0:00:24]} Bxf4 {[%emt 0:02:22]} 16. Qxf4 {[%emt 0:00:05]} Be6 {[%emt 0:02:59]} 17. b3 {[%emt 0:05:50]} Qa5 {[%emt 0:05:29]} 18. Rfc1 {[%emt 0:09:47]} Rac8 {[%emt 0:06:59]} 19. h4 {[%emt 0:06:37]} Rfd8 {[%emt 0:04:34]} 20. Bf3 {[%emt 0:10:19]} c5 {[%emt 0:05:57]} 21. h5 {[%emt 0:15:31]} h6 {[%emt 0:03:10]} 22. Qe5 {[%emt 0:03:47]} Qb6 {[%emt 0:19:03]} 23. Qe3 {[%emt 0:05:24]} a5 {[%emt 0:05:52]} 24. Rc3 {[%emt 0:01:32]} Qb4 {[%emt 0:07:52]} 25. Rac1 {[%emt 0:09:36]} a4 {[%emt 0:01:57]} 26. bxa4 {[%emt 0:06:37]} Qxa4 {[%emt 0:02:55]} 27. Rxc5 {[%emt 0:04:23]} Rxc5 {[%emt 0:00:30]} 28. Qxc5 {[%emt 0:03:47]} Qxa2 {[%emt 0:00:58]} 1/2-1/2

[Event "Serbian League Women 2024"]
[Site "Bajina Basta"]
[Date "2024.10.01"]
[Round "5.5"]
[White "Pogorelskikh, Sofia"]
[Black "Gaponenko, Inna"]
[Result "1-0"]
[ECO "B79"]
[WhiteElo "2176"]
[BlackElo "2324"]
[Annotator "RC"]
[PlyCount "77"]
[EventDate "2024.09.26"]
[EventType "team-tourn"]
[EventCountry "SRB"]
[SourceTitle "playchess.com"]
[Source "ChessBase"]
[SourceQuality "1"]
[TimeControl "40/5400+30:1800+30"]

1. e4 {[%emt 0:00:06]} c5 {[%emt 0:00:06]} 2. Nf3 {[%emt 0:00:15]} d6 {[%emt 0:00:06]} 3. d4 {[%emt 0:00:25]} cxd4 {[%emt 0:00:05]} 4. Nxd4 {[%emt 0:00:12]} Nf6 {[%emt 0:00:05]} 5. Nc3 {[%emt 0:00:14]} g6 {[%emt 0:00:08]} 6. Be3 {[%emt 0:00:48]} Bg7 {[%emt 0:00:04]} 7. f3 {[%emt 0:03:37]} O-O {[%emt 0:00:09]} 8. Qd2 {[%emt 0:00:50]} Nc6 {[%emt 0:00:06]} 9. Bc4 {[%emt 0:00:33]} Bd7 {[%emt 0:00:04]} 10. h4 {[%emt 0:01:04]} Ne5 {[%emt 0:00:09]} 11. Bb3 {[%emt 0:01:05]} Qa5 {[%emt 0:00:05]} 12. O-O-O {[%emt 0:01:31]} Rfc8 {[%emt 0:00:08]} 13. Kb1 {[%emt 0:01:06]} Nc4 {[%emt 0:01:46]} 14. Bxc4 {[%emt 0:00:27]} Rxc4 {[%emt 0:00:04]} 15. Nb3 {[%emt 0:01:18]} Qc7 {[%emt 0:00:10]} 16. Bd4 {[%emt 0:02:10]} Be6 {[%emt 0:01:32]} 17. h5 {[%emt 0:02:27]} a5 {[%emt 0:00:14]} 18. h6 {[%emt 0:01:26]} Bf8 {[%emt 0:07:44]} 19. a4 {[%emt 0:12:31]} Bd7 {[%emt 1:06:36]} 20. Bxf6 {[%emt 0:21:50]} exf6 {[%emt 0:01:54]} 21. Nd5 {[%emt 0:01:20]} Qd8 {[%emt 0:00:01]} 22. Qe3 {[%emt 0:12:01]} Rac8 {[%emt 0:10:10]} 23. Nb6 {[%emt 0:07:23]} Rxc2 {[%emt 0:00:04]} 24. Nxc8 {[%emt 0:01:03]} Rxc8 {[%emt 0:00:03]} 25. Qd4 {[%emt 0:04:10]} b5 {[%emt 0:05:20]} 26. axb5 {[%emt 0:01:43]} Bxb5 {[%emt 0:00:01]} 27. Rc1 {[%emt 0:02:27]} Rb8 {[%emt 0:03:50]} 28. Na1 {[%emt 0:06:57]} Qe7 {[%emt 0:02:57]} 29. Nc2 {[%emt 0:01:42]} Qe5 {[%emt 0:00:19]} 30. Qxe5 {[%emt 0:01:48]} fxe5 {[%emt 0:00:10]} 31. Ne3 {[%emt 0:01:02]} Bd3+ {[%emt 0:01:02]} 32. Ka2 {[%emt 0:00:48]} f5 {[%emt 0:00:12]} 33. Rc7 {[%emt 0:01:32]} Rb4 {[%emt 0:00:52]} 34. b3 {[%emt 0:00:44]} Rd4 {[%emt 0:00:28]} 35. Nd5 {[%emt 0:00:42]} Rxd5 {[%emt 0:00:04]} 36. exd5 {[%emt 0:00:06]} f4 {[%emt 0:00:42]} 37. Ra7 {[%emt 0:02:38]} e4 {[%emt 0:00:10]} 38. Rc1 {[%emt 0:00:55]} exf3 {[%emt 0:01:06]} 39. Rc8 {[%emt 0:01:10]} 1-0

[Event "Serbian League Women 2024"]
[Site "Bajina Basta"]
[Date "2024.10.01"]
[Round "5.6"]
[White "Doluhanova, Evgeniya"]
[Black "Ibrahimova, Sabina"]
[Result "1-0"]
[ECO "A46"]
[WhiteElo "2304"]
[BlackElo "2199"]
[Annotator "RC"]
[PlyCount "79"]
[EventDate "2024.09.26"]
[EventType "team-tourn"]
[EventCountry "SRB"]
[SourceTitle "playchess.com"]
[Source "ChessBase"]
[SourceQuality "1"]
[TimeControl "40/5400+30:1800+30"]

1. Nf3 {[%emt 0:00:13]} Nf6 {[%emt 0:00:43]} 2. b3 {[%emt 0:00:14]} g6 {[%emt 0:00:53]} 3. Bb2 {[%emt 0:00:05]} Bg7 {[%emt 0:00:08]} 4. d4 {[%emt 0:02:55]} O-O {[%emt 0:01:26]} 5. Nbd2 {[%emt 0:01:12]} d6 {[%emt 0:07:07]} 6. e4 {[%emt 0:00:23]} c5 {[%emt 0:01:16]} 7. dxc5 {[%emt 0:14:12]} dxc5 {[%emt 0:12:53]} 8. Bc4 {[%emt 0:04:13]} Bg4 {[%emt 0:08:15]} 9. O-O {[%emt 0:31:47]} Nc6 {[%emt 0:29:44]} 10. Re1 {[%emt 0:12:15]} Na5 {[%emt 0:14:19]} 11. Bd3 {[%emt 0:05:49]} Qc7 {[%emt 0:03:24]} 12. Rb1 {[%emt 0:03:05]} Rad8 {[%emt 0:01:37]} 13. h3 {[%emt 0:00:27]} Bc8 {[%emt 0:02:33]} 14. Be5 {[%emt 0:02:10]} Qb6 {[%emt 0:03:42]} 15. Qe2 {[%emt 0:01:04]} h6 {[%emt 0:03:39]} 16. a3 {[%emt 0:00:47]} Be6 {[%emt 0:00:53]} 17. b4 {[%emt 0:12:30]} Nc6 {[%emt 0:01:00]} 18. bxc5 {[%emt 0:01:06]} Qa5 {[%emt 0:00:04]} 19. Rb5 {[%emt 0:00:44]} Qa4 {[%emt 0:00:07]} 20. Bc7 {[%emt 0:01:08]} Rc8 {[%emt 0:01:57]} 21. Rxb7 {[%emt 0:00:42]} Qxa3 {[%emt 0:00:19]} 22. Bh2 {[%emt 0:00:52]} Qxc5 {[%emt 0:02:27]} 23. Rb5 {[%emt 0:00:23]} Nd4 {[%emt 0:02:04]} 24. Nxd4 {[%emt 0:00:07]} Qxd4 {[%emt 0:00:02]} 25. Reb1 {[%emt 0:00:10]} Nd7 {[%emt 0:01:06]} 26. Nf3 {[%emt 0:01:00]} Qc3 {[%emt 0:00:21]} 27. Bf4 {[%emt 0:00:21]} Qc6 {[%emt 0:00:38]} 28. Ra5 {[%emt 0:01:14]} Ra8 {[%emt 0:00:47]} 29. e5 {[%emt 0:01:09]} Nb6 {[%emt 0:00:45]} 30. Be4 {[%emt 0:01:03]} Nd5 {[%emt 0:00:31]} 31. Bd2 {[%emt 0:00:42]} Rad8 {[%emt 0:00:45]} 32. c4 {[%emt 0:00:36]} Rd7 {[%emt 0:00:28]} 33. cxd5 {[%emt 0:00:23]} Bxd5 {[%emt 0:00:11]} 34. Bxd5 {[%emt 0:01:01]} Rxd5 {[%emt 0:00:07]} 35. Rxd5 {[%emt 0:00:32]} Qxd5 {[%emt 0:00:04]} 36. Qb5 {[%emt 0:00:12]} Qe4 {[%emt 0:00:09]} 37. Be3 {[%emt 0:00:42]} a6 {[%emt 0:00:16]} 38. Qb4 {[%emt 0:00:09]} Qf5 {[%emt 0:01:03]} 39. Rd1 {[%emt 0:00:57]} Qe6 {[%emt 0:01:03]} 40. Qb6 {[%emt 0:00:29]} 1-0

[Event "Serbian League Women 2024"]
[Site "Bajina Basta"]
[Date "2024.10.01"]
[Round "5.7"]
[White "Djukic, Sandra"]
[Black "Petronic, Sanja"]
[Result "0-1"]
[ECO "A65"]
[WhiteElo "2126"]
[BlackElo "2081"]
[Annotator "RC"]
[PlyCount "78"]
[EventDate "2024.09.26"]
[EventType "team-tourn"]
[EventCountry "SRB"]
[SourceTitle "playchess.com"]
[Source "ChessBase"]
[SourceQuality "1"]
[TimeControl "40/5400+30:1800+30"]

1. d4 {[%emt 0:00:03]} Nf6 {[%emt 0:00:31]} 2. c4 {[%emt 0:00:07]} c5 {[%emt 0:00:07]} 3. d5 {[%emt 0:00:07]} e6 {[%emt 0:01:25]} 4. Nc3 {[%emt 0:00:14]} exd5 {[%emt 0:00:12]} 5. cxd5 {[%emt 0:00:08]} d6 {[%emt 0:00:02]} 6. e4 {[%emt 0:00:08]} g6 {[%emt 0:00:10]} 7. f3 {[%emt 0:00:34]} Bg7 {[%emt 0:00:54]} 8. Be3 {[%emt 0:01:14]} a6 {[%emt 0:00:34]} 9. a4 {[%emt 0:00:07]} O-O {[%emt 0:01:03]} 10. Nge2 {[%emt 0:00:04]} h5 {[%emt 0:06:30]} 11. Nf4 {[%emt 0:13:01]} Nbd7 {[%emt 0:01:33]} 12. Nd3 {[%emt 0:19:22]} Rb8 {[%emt 0:04:56]} 13. Be2 {[%emt 0:19:31]} b5 {[%emt 0:04:56]} 14. axb5 {[%emt 0:08:05]} axb5 {[%emt 0:00:13]} 15. O-O {[%emt 0:03:01]} Re8 {[%emt 0:09:19]} 16. Nf2 {[%emt 0:04:46]} b4 {[%emt 0:10:29]} 17. Na4 {[%emt 0:01:03]} Bb7 {[%emt 0:09:21]} 18. Bf4 {[%emt 0:06:08]} Nb6 {[%emt 0:04:24]} 19. Bb5 {[%emt 0:02:26]} Nxa4 {[%emt 0:05:03]} 20. Bxa4 {[%emt 0:08:17]} Re7 {[%emt 0:04:42]} 21. Qd2 {[%emt 0:09:49]} Qb6 {[%emt 0:04:28]} 22. Rfc1 {[%emt 0:02:33]} Nd7 {[%emt 0:04:17]} 23. Kh1 {[%emt 0:00:33]} Ne5 {[%emt 0:07:07]} 24. Bg5 {[%emt 0:00:34]} Rc7 {[%emt 0:03:54]} 25. f4 {[%emt 0:00:09]} Ng4 {[%emt 0:05:41]} 26. Nxg4 {[%emt 0:00:49]} hxg4 {[%emt 0:00:04]} 27. f5 {[%emt 0:00:31]} gxf5 {[%emt 0:02:09]} 28. exf5 {[%emt 0:00:05]} f6 {[%emt 0:00:04]} 29. Bf4 {[%emt 0:00:44]} Ra8 {[%emt 0:01:43]} 30. Qe2 {[%emt 0:00:41]} Bxd5 {[%emt 0:02:35]} 31. Bb3 {[%emt 0:00:30]} Qb7 {[%emt 0:01:31]} 32. Rxa8+ {[%emt 0:00:28]} Qxa8 {[%emt 0:00:08]} 33. Bxd6 {[%emt 0:00:19]} Rc8 {[%emt 0:01:35]} 34. Qd3 {[%emt 0:00:47]} c4 {[%emt 0:01:02]} 35. Qc2 {[%emt 0:00:27]} Bh6 {[%emt 0:00:47]} 36. Qe2 {[%emt 0:00:29]} Bxc1 {[%emt 0:00:45]} 37. Qxg4+ {[%emt 0:00:02]} Bg5 {[%emt 0:00:06]} 38. Bd1 {[%emt 0:00:12]} Bxg2+ {[%emt 0:01:59]} 39. Kg1 {[%emt 0:00:01]} Qe4 {[%emt 0:01:01]} 0-1

[Event "Serbian League Women 2024"]
[Site "Bajina Basta"]
[Date "2024.10.01"]
[Round "5.9"]
[White "Osmak, Yuliia"]
[Black "Chelushkina, Irina"]
[Result "1-0"]
[ECO "D32"]
[WhiteElo "2471"]
[BlackElo "2167"]
[Annotator "TA"]
[PlyCount "69"]
[EventDate "2024.09.26"]
[EventType "team-tourn"]
[EventCountry "SRB"]
[SourceTitle "playchess.com"]
[Source "ChessBase"]
[SourceQuality "1"]
[TimeControl "40/5400+30:1800+30"]

{[%evp 12,69,47,53,49,47,75,64,59,44,63,24,61,65,65,39,84,93,90,91,134,106,134,121,122,48,173,174,175,172,166,133,236,262,279,262,258,231,302,264,404,401,633,296,331,304,661,580,833,795,1129,1177,1164,1154,29990,29991,29992,29983,29981,29982]} 1. d4 {[%emt 0:00:04]} d5 {[%emt 0:00:20]} 2. c4 {[%emt 0:00:04]} e6 {[%emt 0:00:03]} 3. Nc3 {[%emt 0:00:08]} c5 {[%emt 0:00:19]} 4. cxd5 {[%emt 0:00:11]} cxd4 {[%emt 0:00:30]} 5. Qa4+ {[%emt 0:00:08]} Bd7 {[%emt 0:00:13]} 6. Qxd4 {[%emt 0:00:07]} exd5 {[%emt 0:00:38]} 7. Qxd5 {[%emt 0:00:29]} (7. Nxd5 Nc6 8. Qf4 Qa5+ 9. Nc3 Nb4 $11) 7... Nf6 {[%emt 0:01:18]} 8. Qd1 {[%emt 0:00:24]} Bc5 {[%emt 0:01:12]} 9. Nf3 {[%emt 0:01:51]} O-O {[%emt 0:02:25] White is slightly better.} 10. a3 {[%emt 0:01:49]} Qc7 {[%emt 0:01:46]} 11. g3 {[%emt 0:02:09]} Qb6 {[%emt 0:08:12]} 12. e3 {[%emt 0:01:32][%cal Be2e3,Be3e4,Be4e5][%mdl 32]} Rd8 {[%emt 0:00:28]} 13. Qc2 {[%emt 0:02:27]} Na6 {[%emt 0:02:18][%cal Bb8a6,Ba6c5,Bc5e6][%mdl 32]} 14. Bg2 {[%emt 0:03:57]} Be7 {[%emt 0:07:45]} 15. O-O {[%emt 0:03:06]} Nc5 {[%emt 0:00:12]} 16. b4 {[%emt 0:03:50][%cal Bb2b4,Bb4b5][%mdl 32]} Ne6 {[%emt 0:00:41]} 17. e4 {[%emt 0:18:09]} Rac8 {[%emt 0:04:00]} 18. Bb2 {[%emt 0:12:51]} (18. Be3 $16 Qa6 19. Qb2) 18... Bc6 {[%emt 0:10:39] [#] This move loses the game for Black.} (18... a5 $14) 19. Qe2 $1 $18 {[%emt 0:02:00]} a5 {[%emt 0:05:08]} 20. b5 {[%emt 0:02:32]} Be8 {[%emt 0:03:08]} 21. e5 {[%emt 0:09:55]} Ng4 {[%emt 0:07:15] [#]} (21... Nd5 $16 22. Nxd5 Rxd5) 22. a4 $1 {[%emt 0:05:18]} h5 {[%emt 0:16:23]} 23. h3 {[%emt 0:06:07]} Nh6 {[%emt 0:00:24]} 24. Rfd1 {[%emt 0:03:04]} h4 {[%emt 0:07:47]} 25. Kh2 {[%emt 0:05:09]} (25. gxh4 $6 Bb4 $18 (25... Nf4 $2 26. Qe4 $18)) (25. Nxh4 $6 Bxh4 26. gxh4 (26. Nd5 Rxd5 27. Bxd5 Bg5 $16) 26... Nf4 $18) (25. Nd5 Rxd5 26. Rxd5 hxg3 $16) 25... Bc5 {[%emt 0:03:26]} (25... hxg3+ {was worth a try.} 26. fxg3 Nf5) 26. Nxh4 {[%emt 0:04:58]} g5 {[%emt 0:02:34]} (26... Nd4 $142 27. Qc4 Qe6 28. Qxe6 Nxe6 29. Bxb7 Rb8 30. Rxd8 Rxd8) 27. Qh5 {[%emt 0:05:42]} (27. Nd5 Rxd5 28. Rxd5 (28. Bxd5 gxh4 29. Rac1 hxg3+ 30. fxg3 Nf5 $16) 28... gxh4 $16) (27. Ne4 $142 gxh4 28. Nf6+ (28. gxh4 Be7 $16) 28... Kg7 29. Qe4 (29. gxh4 Be7 $18) 29... hxg3+ 30. fxg3) 27... Bf8 {[%emt 0:00:05]} 28. Ne4 {[%emt 0:01:51][%cal Bc3e4,Be4f6,Bf6d5][%mdl 32]} gxh4 $2 {[%emt 0:03:37] [#]} (28... Bg7 29. Nxg5 f6) 29. Rd6 $1 {[%emt 0:01:07][%mdl 512]} Rxd6 {[%emt 0:02:31]} (29... hxg3+ 30. fxg3) 30. exd6 {[%emt 0:00:36] Hoping for Nf6+.} Rc2 {[%emt 0:00:29]} 31. Nf6+ {[%emt 0:00:41]} Kh8 {[%emt 0:00:57]} 32. Nd5+ {[%emt 0:00:15]} f6 {[%emt 0:01:39]} 33. Bxf6+ {[%emt 0:00:38] White mates.} (33. Qxe8 Qxf2 34. Rg1 (34. Bxf6+ $2 {loses.} Kh7 $19) 34... Rxb2 $15) 33... Kg8 {[%emt 0:01:40]} 34. Qxe8 {[%emt 0:00:23]} hxg3+ {[%emt 0:00:37]} 35. fxg3 {[%emt 0:01:01] Weighted Error Value: White=0.24 (precise) /Black=0.67.  Mistake:       	White=2     	Black=5      Inaccurate:     	White=1     	Black=7      OK:         	White=10    	Black=5      Best:        	White=4     	Black=1      Strong:       	White=1     	---} 1-0

[Event "Serbian League Women 2024"]
[Site "Bajina Basta"]
[Date "2024.10.01"]
[Round "5.10"]
[White "Borisova, Ekaterina"]
[Black "Roebers, Eline"]
[Result "0-1"]
[ECO "D30"]
[WhiteElo "2205"]
[BlackElo "2340"]
[Annotator "RC"]
[PlyCount "64"]
[EventDate "2024.09.26"]
[EventType "team-tourn"]
[EventCountry "SRB"]
[SourceTitle "playchess.com"]
[Source "ChessBase"]
[SourceQuality "1"]
[TimeControl "40/5400+30:1800+30"]

1. d4 {[%emt 0:00:01]} e6 {[%emt 0:00:04]} 2. c4 {[%emt 0:00:09]} d5 {[%emt 0:00:04]} 3. Nf3 {[%emt 0:00:21]} c6 {[%emt 0:00:04]} 4. g3 {[%emt 0:00:04]} dxc4 {[%emt 0:00:04]} 5. Bg2 {[%emt 0:00:06]} b5 {[%emt 0:00:04]} 6. O-O {[%emt 0:00:29]} Bb7 {[%emt 0:00:05]} 7. Ne5 {[%emt 0:00:13]} Nf6 {[%emt 0:00:16]} 8. a4 {[%emt 0:00:08]} a6 {[%emt 0:00:04]} 9. b3 {[%emt 0:00:03]} cxb3 {[%emt 0:00:12]} 10. Qxb3 {[%emt 0:00:06]} Qxd4 {[%emt 0:00:04]} 11. Bb2 {[%emt 0:00:15]} Qb6 {[%emt 0:00:04]} 12. Nd2 {[%emt 0:04:38]} Be7 {[%emt 0:00:05]} 13. Ndf3 {[%emt 0:17:27]} O-O {[%emt 0:02:16]} 14. Nxf7 {[%emt 0:11:42]} Rxf7 {[%emt 0:04:39]} 15. Qxe6 {[%emt 0:04:35]} Nbd7 {[%emt 0:04:48]} 16. Ng5 {[%emt 0:02:52]} Raf8 {[%emt 0:00:22]} 17. axb5 {[%emt 0:07:25]} Nc5 {[%emt 0:04:34]} 18. Qh3 {[%emt 0:05:00]} cxb5 {[%emt 0:03:24]} 19. Bxf6 {[%emt 0:08:33]} gxf6 {[%emt 0:00:06]} 20. Nxf7 {[%emt 0:00:06]} Rxf7 {[%emt 0:00:08]} 21. Bxb7 {[%emt 0:00:44]} Qxb7 {[%emt 0:00:12]} 22. Qg4+ {[%emt 0:00:53]} Kh8 {[%emt 0:02:15]} 23. Rfb1 {[%emt 0:05:51]} Bf8 {[%emt 0:03:22]} 24. h4 {[%emt 0:01:31]} f5 {[%emt 0:04:11]} 25. Qd4+ {[%emt 0:02:33]} Kg8 {[%emt 0:00:15]} 26. Qf4 {[%emt 0:04:40]} Qe4 {[%emt 0:02:33]} 27. Qg5+ {[%emt 0:04:39]} Rg7 {[%emt 0:00:09]} 28. Qd2 {[%emt 0:00:22]} f4 {[%emt 0:05:58]} 29. Rb4 {[%emt 0:00:53]} Qe5 {[%emt 0:00:18]} 30. Rd1 {[%emt 0:01:12]} fxg3 {[%emt 0:00:33]} 31. f4 {[%emt 0:00:09]} Qf5 {[%emt 0:01:16]} 32. Kg2 {[%emt 0:01:26]} Ne6 {[%emt 0:00:50]} 0-1